Cogmind - Beta 13 *** ADVENTURER MODE // 2024.07.13 @ 16:50:12 Player: AnotherZach Result: Destroyed by H-77 Assassin with Coil Gun Performance ------------- Evolutions (6) 3000 Regions Visited (20) 4000 Robots Destroyed (445) 2225 Value Destroyed (18654) 18654 Prototype IDs (46) 920 Alien Tech Used (0) 0 Bonus (8698) 8698 TOTAL SCORE: 37497 Bonus ------- High Alert Combat Kills 4447 Follower Combat Kills 962 Entered Garrisons 1000 Used RIF Installer 2500 Aligned with FarCom 300 Friendly Fire -511 Cogmind --------- Core Integrity 0/1150 Matter 247/300 Energy 794/1625 System Corruption 25% Temperature Cool (0) Movement Flying (23) Location -4/Upper Caves Parts ------- > --- POWER (2) -------- Light Ion Engine > --- PROPULSION (6) --- VTOL Module VTOL Module VTOL Module Cooled Cesium-ion Thruster Cooled Cesium-ion Thruster > --- UTILITY (8) ------ Superbattery Experimental Core Analyzer Advanced System Shield Relay Coupler [NC] (45) > --- WEAPON (3) ------- Coil Gun Compact Tesla Bomb Launcher > --- INVENTORY (5) ---- Precision Phase Gun Precision Phase Gun Advanced KE Penetrator Light Antimatter Cannon Light Antimatter Cannon Peak State ------------ > --- POWER ------------ Neutrino Core Light Particle Reactor > --- PROPULSION ------- Heavy Treads Improved Heavy Treads Heavy Siege Treads > --- UTILITY ---------- Improved Cooling System Huge Storage Unit Matter Compressor Experimental Core Analyzer Advanced Kinecellerator Improved Phase Shifter Improved Remote Force Field Dynamic Insulation System > --- WEAPON ----------- Light Antimatter Cannon Compact Linear Accelerator Compact Linear Accelerator > --- INVENTORY -------- Neutrino Core Superbattery Advanced Kinecellerator Advanced Kinecellerator Improved Weapon Cycler Stasis Canceller Damper Plating Advanced Thermal Shield Improved Shield Generator Improved Force Field Advanced System Shield Relay Coupler [NC] High-powered Tractor Beam Precision Phase Gun Precision Phase Gun Coil Gun Advanced KE Penetrator Light Antimatter Cannon Light Antimatter Cannon Improved Remote Datajack [Rating: 144] Favorites ----------- Power Improved Ion Engine Engine Improved Ion Engine Power Core Enhanced Fission Core Reactor Antimatter Reactor Propulsion Light Treads Treads Light Treads Leg Carbon-fiber Leg Wheel Wheel Flight Unit Impulse Thruster Utility Huge Storage Unit Device Improved Cooling System Storage Huge Storage Unit Processor Enhanced Optical Array Hackware Hacking Suite Protection Layered Medium Armor Plating Weapon Heavy Plasma Cannon Energy Gun Beam Rifle Energy Cannon Heavy Plasma Cannon Ballistic Gun Railgun Ballistic Cannon Heavy Gauss Cannon Launcher Heavy Rocket Launcher Special Weapon Improved Remote Datajack Impact Weapon Heavy Hammer Slashing Weapon Power Sword Special Melee Weapon Improved Datajack Build | -11 -10 -10 -9 -9 -9 -8 -8 -8 -7 -7 -7 -7 -6 -6 -5 -5 -4 -4 -4 -4 ------- Run | Yrd Mat Min Mat Min Exi Min Mat Gar Fac Gar Fac Gar Fac Gar Fac Gar Fac Was Fac Upp Slots Evolved 12 | . . . 2 . . . 2 . 2 . . . 2 . 2 . 2 . . . Power 1 | . . . . . . . . . . . . . . . . . 1 . . . Propulsion 4 | . . . 2 . . . 2 . . . . . . . . . . . . . Utility 6 | . . . . . . . . . 1 . . . 2 . 2 . 1 . . . Weapon 1 | . . . . . . . . . 1 . . . . . . . . . . . Parts Attached 477 | 7 3 1 31 . 1 3 26 7 59 36 20 10 13 32 55 36 24 11 95 7 Power 39 | 1 . . 2 . . . 2 1 4 4 2 1 1 2 4 2 1 1 11 . Engine 10 | 1 . . 2 . . . 1 1 3 . 1 . . . . . . . 1 . Core 12 | . . . . . . . 1 . 1 . . 1 1 . 4 . . . 4 . Reactor 17 | . . . . . . . . . . 4 1 . . 2 . 2 1 1 6 . Propulsion 157 | 2 1 . 17 . . 1 16 1 22 11 7 3 4 6 22 14 6 4 17 3 Treads 58 | . . . 13 . . 1 13 1 . 4 1 3 3 4 7 . . 3 5 . Leg 37 | . . . . . . . . . . 3 . . . . 5 14 6 1 8 . Wheel 12 | 2 1 . 3 . . . . . . 1 5 . . . . . . . . . Hover . | . . . . . . . . . . . . . . . . . . . . . Flight 50 | . . . 1 . . . 3 . 22 3 1 . 1 2 10 . . . 4 3 Utility 135 | 2 2 . 3 . . . 1 1 18 8 6 1 3 10 17 9 10 4 39 1 Device 76 | 1 . . 3 . . . 1 . 14 7 1 . 1 6 6 4 5 2 25 . Storage 13 | 1 1 . . . . . . . 1 1 . . . . 4 . 1 . 3 1 Processor 10 | . . . . . . . . . . . . . 1 . 1 1 2 . 5 . Hackware 17 | . . . . . . . . . 2 . 2 . 1 2 5 1 . 1 3 . Protection 19 | . 1 . . . . . . 1 1 . 3 1 . 2 1 3 2 1 3 . Artifact . | . . . . . . . . . . . . . . . . . . . . . Weapon 146 | 2 . 1 9 . 1 2 7 4 15 13 5 5 5 14 12 11 7 2 28 3 Energy Gun 23 | . . . 7 . 1 . 1 . 3 2 1 . 1 . . 1 . . 6 . Energy Cannon 21 | . . . . . . . . . . 1 . . . 5 6 7 2 . . . Ballistic Gun 36 | 2 . 1 1 . . . 1 1 1 5 1 . 1 . 2 1 4 1 13 1 Ballistic Cannon 27 | . . . . . . 1 4 2 . 2 2 2 1 5 1 1 . . 6 . Launcher 21 | . . . . . . 1 1 1 8 3 . 1 1 2 . . . . 1 2 Special Weapon 12 | . . . . . . . . . . . 1 . 1 2 3 1 1 1 2 . Impact Weapon 2 | . . . 1 . . . . . 1 . . . . . . . . . . . Slashing Weapon 2 | . . . . . . . . . . . . 2 . . . . . . . . Piercing Weapon . | . . . . . . . . . . . . . . . . . . . . . Special Melee Weapon 2 | . . . . . . . . . 2 . . . . . . . . . . . Unidentified Prototypes 23 | . . . 3 . . . 1 . 1 1 2 . 2 . 2 . . . 11 . Corrupted Parts 2 | . . . . . . . . . . . . . . . . . . . 1 1 System Corruption 7 | . . . . . . . . . . . . . . . . . . . 3 4 Parts Lost 92 | . . 1 . . . . 4 2 6 12 . 1 . 5 5 3 7 . 45 1 Power 13 | . . . . . . . 1 1 1 1 . . . . . . 1 . 8 . Propulsion 39 | . . . . . . . 3 . 4 5 . 1 . 4 5 2 2 . 13 . Utility 24 | . . . . . . . . 1 . 1 . . . . . 1 3 . 17 1 Weapon 16 | . . 1 . . . . . . 1 5 . . . 1 . . 1 . 7 . Highest Loss Streak 11 | . . 1 . . . . 3 2 2 6 . 1 . 3 2 1 4 . 11 1 To Critical Strikes 1 | . . . . . . . . . . . . . . . . . . . . 1 Average Slot Usage (%) 92 | . 100 100 99 100 82 100 97 95 95 90 97 89 91 98 88 94 89 73 73 55 Engine 3 | . 14 14 11 11 11 11 4 1 5 1 3 . . . . . . . . 5 Core 1 | . . . . . . . 4 3 1 . . 4 6 3 2 4 . . 1 . Reactor 2 | . . . . . . . . . . 5 3 2 . 2 2 . 6 10 7 . Treads 18 | . . . 38 44 44 44 46 54 . 11 17 12 27 31 8 . . 12 11 . Leg 4 | . . . . . . . . . . 8 . . . . . 33 30 4 2 . Wheel 4 | . 28 28 4 . . . . . . 2 22 23 6 . . . . . . . Flight 9 | . . . . . . . 5 . 44 17 4 . . 7 23 . . . . 17 Device 10 | . 6 . 9 11 11 11 8 2 6 10 7 7 6 9 12 16 9 8 14 5 Storage 7 | . 14 14 11 11 11 11 9 9 7 7 7 7 6 6 6 5 7 6 6 3 Processor 2 | . . . . . . . . . . . . . 4 6 5 5 11 3 3 5 Hackware 3 | . . . . . . . . . 6 4 . . 5 3 10 4 1 4 4 10 Protection 3 | . 7 14 . . . . . 5 . . 5 7 6 5 1 5 3 5 3 . Energy Gun 4 | . . . 19 22 5 . . . 3 2 5 . . . . . . . . 1 Energy Cannon 2 | . . . . . . . . . . 2 1 . . 9 6 4 9 1 . . Ballistic Gun 3 | . 28 28 2 . . . 1 6 1 5 4 5 2 . . 2 2 8 9 6 Ballistic Cannon 4 | . . . . . . 10 15 10 . 2 4 13 13 10 . 4 . . 3 . Launcher 1 | . . . . . . 11 . . 7 2 2 . . . . . . . . . Naked Turns . | . . . . . . . . . . . . . . . . . . . . . Heaviest Build 187 | 15 90 90 95 95 95 96 98 99 96 131 131 136 133 153 140 152 179 187 183 24 Greatest Support 215 | 20 20 20 83 83 83 83 126 122 122 70 86 86 146 166 142 159 165 210 215 30 Greatest Overweight (x) 36 | . 4 4 2 1 1 1 4 . 4 1 8 3 4 1 2 1 1 1 36 1 Average Overweight (x) . | . 3 4 1 1 1 1 . . . . 1 1 2 . . . . . . . Largest Inventory Capacity 25 | 8 25 25 25 25 25 25 25 25 25 25 25 25 25 25 25 25 25 25 25 5 Average Capacity 21 | 7 24 25 25 25 25 25 25 25 10 15 25 25 25 25 15 25 25 25 24 5 Most Carried 25 | 5 23 23 25 25 25 25 25 25 23 25 25 25 25 25 25 25 25 25 25 5 Average Carried 20 | 2 15 22 24 24 24 24 24 23 9 13 24 24 24 24 14 24 23 23 22 4 Final Capacity 25 | 8 25 25 25 25 25 25 25 25 10 25 25 25 25 25 25 25 25 25 5 5 Final Carried 25 | 4 23 22 25 25 25 25 25 23 9 24 24 25 24 25 24 25 25 24 5 5 Class Distribution -------------------- 22% | Scavenger-Mutant 21% | Scavenger-Skirmisher 15% | Hacker-Sprinter 7% | Commander-Skirmisher 6% | Mutant 5% | Skirmisher 4% | Scavenger-Tank 4% | Bothacker-Skirmisher 3% | Hacker-Skirmisher Dominant Class ---------------- Mutant | -10/Materials Mutant | -10/Mines Scavenger-Mutant | -9/Materials Scavenger-Mutant | -9/Mines Scavenger-Mutant | -9/Exiles Scavenger-Mutant | -8/Mines Scavenger-Mutant | -8/Materials Scavenger-Mutant | -8/Garrison Hacker-Sprinter | -7/Factory Scavenger-Skirmisher | -7/Garrison Scavenger-Skirmisher | -7/Factory Commander-Skirmisher | -7/Garrison Commander-Skirmisher | -6/Factory Skirmisher | -6/Garrison Hacker-Sprinter | -5/Factory Scavenger-Skirmisher | -5/Garrison Bothacker-Skirmisher | -4/Factory Scavenger-Skirmisher | -4/Waste Scavenger-Skirmisher | -4/Factory Scavenger-Sprinter | -4/Upper Caves Resources | -11 -10 -10 -9 -9 -9 -8 -8 -8 -7 -7 -7 -7 -6 -6 -5 -5 -4 -4 -4 -4 ----------- Run | Yrd Mat Min Mat Min Exi Min Mat Gar Fac Gar Fac Gar Fac Gar Fac Gar Fac Was Fac Upp Matter Collected 15177 | 208 245 60 568 14 . 100 766 44 1061 1127 873 895 542 1348 809 1791 990 687 2972 77 Remotely 928 | . . . . . . . . . . . . . . . . . . . 928 . Salvage Created 17061 | 26 316 60 1648 163 . 68 750 52 950 1265 1603 963 314 660 1748 1260 964 613 3455 183 Parts 760 | 4 14 5 86 8 . 1 44 5 64 42 73 35 15 23 72 48 36 8 164 13 Haulers Intercepted 17 | . 1 . 4 . . . 2 . 4 . 2 . . . 1 . . . 3 . Recyclers Shooed 15 | 1 1 1 3 . . . 1 . . . 1 . 1 . . . 2 . 4 . Parts Field Recycled 10 | . . . . . . . . . 10 . . . . . . . . . . . Retrieved Matter 87 | . . . . . . . . . 87 . . . . . . . . . . . Parts Self-Destructed 6 | . . . . . . . . . . . . . . . . . . . . 6 Prevented 2 | . . . . . . . . . . . . . . . . . . . . 2 Kills | -11 -10 -10 -9 -9 -9 -8 -8 -8 -7 -7 -7 -7 -6 -6 -5 -5 -4 -4 -4 -4 ------- Run | Yrd Mat Min Mat Min Exi Min Mat Gar Fac Gar Fac Gar Fac Gar Fac Gar Fac Was Fac Upp Combat Hostiles Destroyed 329 | . 8 2 31 5 . 3 17 7 22 29 16 29 9 21 26 34 17 3 45 5 Melee 2 | . . . . . . . . . . 2 . . . . . . . . . . Guns 111 | . 8 2 27 5 . . 2 2 2 11 10 6 . . 2 4 1 3 23 3 Cannons 161 | . . . . . . 1 15 1 . 7 5 20 8 20 22 28 16 . 18 . AOE 45 | . . . 2 . . 2 . 4 20 9 1 3 1 . . . . . 2 1 Classes Destroyed 22 | 1 5 . 6 . . . . 1 1 2 . 1 1 1 . . . 1 2 . Worker 41 | . 1 . 1 . . . 5 . 14 . 10 . 2 . . . . . 8 . Builder 17 | . . . 1 . . . . . 6 . 2 . 1 . . . . . 7 . Tunneler 1 | 1 . . . . . . . . . . . . . . . . . . . . Hauler 17 | . 1 . 4 . . . 2 . 4 . 2 . . . 1 . . . 3 . Recycler 16 | . . . 2 . . . . . 1 . 5 . 1 . 1 . 1 . 5 . Mechanic 2 | . . . 1 . . . . . . . . . . . . . . . 1 . Operator 1 | . . . 1 . . . . . . . . . . . . . . . . . Watcher 20 | . 1 . 5 . . . 3 . 2 . 4 1 . 1 2 1 . . . . Swarmer 99 | . 5 . 11 3 . . 3 4 10 10 . 16 3 2 . 16 9 . 3 4 Cutter 1 | . . . . . . . . . . . . . . 1 . . . . . . Grunt 106 | . 3 2 10 2 . 3 9 . 9 10 9 10 . 5 8 10 1 . 15 . Brawler 7 | . . . . . . . . 1 . 1 . 1 1 1 1 . 1 . . . Duelist 8 | . . . 1 . . . . 1 . 1 . . 1 1 . 1 2 . . . Protector 2 | . . . . . . . . . . . . . . . . . . . 2 . Sentry 32 | . . . 9 . . . 5 1 . 4 1 . 1 3 2 4 . . 2 . Demolisher 1 | . . . . . . . . . . . . . 1 . . . . . . . Specialist 6 | . . . . . . . . . . 1 . . . 4 . . . . 1 . Hunter 26 | . . . . . . . . . . 2 3 1 . . 4 1 3 . 11 1 Programmer 31 | . . . . . . . . . 3 . 3 . 2 2 11 . 1 . 9 . Heavy 2 | . . . . . . . . . . . . . . . . . . . 2 . Behemoth 5 | . . . . . . . . . . . . 1 . 2 . 2 . . . . Compactor 3 | . . . . . . . . . . . . . . . . . . 3 . . Butcher 1 | . . . . . . . . . . . . . . . 1 . . . . . Best Kill Streak 16 | 1 3 2 7 3 . 2 6 4 10 6 5 16 4 5 5 10 7 1 14 4 Combat Bots Only 16 | . 3 2 7 3 . 2 4 4 6 6 3 16 3 5 5 10 6 1 6 4 Max Kills in Single Turn 4 | 1 1 1 2 1 . 1 2 3 4 3 3 3 1 1 1 2 1 1 3 3 Gunslinging 1 | . . . 1 . . . . . . . . . . . . . . . . . Exploded 3 | . . . 2 . . 1 . 3 3 3 1 3 1 . . . . . 1 1 Melee 1 | . . . . . . . . . . 1 . . . . . . . . . . Uniques/NPCs Destroyed . | . . . . . . . . . . . . . . . . . . . . . Combat | -11 -10 -10 -9 -9 -9 -8 -8 -8 -7 -7 -7 -7 -6 -6 -5 -5 -4 -4 -4 -4 -------- Run | Yrd Mat Min Mat Min Exi Min Mat Gar Fac Gar Fac Gar Fac Gar Fac Gar Fac Was Fac Upp Hostile Shots Fired 3212 | . 31 8 145 26 . 20 89 30 218 307 60 108 37 338 188 271 244 . 1065 27 Missed 1082 | . 7 . 55 7 . 3 21 6 118 88 25 37 11 116 79 82 65 . 348 14 Damage Taken 23814 | . 200 67 901 193 . 329 747 437 1078 2064 440 937 221 2169 1511 1617 2311 34 8360 198 Core 2849 | . 27 . 175 39 . 42 7 31 201 279 70 93 38 266 262 158 218 . 901 42 Absorbed by Shields 2655 | . . . . . . . . . 6 53 . 33 32 25 . 988 417 . 1101 . Redirected to Shielding 161 | . . 4 4 . . . . 6 2 . . . . . . . 9 . 136 . Ignored by Resistances 8385 | . 62 22 261 59 . 90 215 121 322 647 131 279 81 662 422 735 768 10 3445 53 Regen/Repaired (Parts) 488 | . . . 88 . . . 328 . 12 . . . . . 60 . . . . . Core Remaining (%) 64 | 100 . 89 . . . 36 . 93 . . . 8 . 64 . 58 . . . . Volleys Fired 1176 | 5 24 8 105 11 . 13 60 20 94 107 60 53 30 75 120 111 47 73 154 6 Largest 3 | 2 2 2 2 2 . 2 2 2 2 3 3 3 3 3 3 3 3 2 3 2 Hottest 353 | 40 40 40 112 101 . 86 83 69 94 157 155 165 174 293 270 338 353 150 200 79 Shots Fired 2263 | 10 48 15 194 22 . 16 116 28 107 167 141 151 61 173 191 206 86 113 410 8 Gun 1097 | 10 48 15 194 22 . 7 17 12 65 128 88 55 12 . 15 35 18 94 258 4 Cannon 1045 | . . . . . . 6 97 10 . 30 45 93 41 166 176 171 65 7 138 . Launcher 85 | . . . . . . 3 2 6 42 9 2 3 2 4 . . . . 8 4 Special 36 | . . . . . . . . . . . 6 . 6 3 . . 3 12 6 . Kinetic 1395 | 10 48 15 34 . . 6 114 22 1 124 78 141 53 121 26 119 18 94 367 4 Thermal 527 | . . . 136 11 . 7 . . . 4 . . . 45 165 87 65 7 . . Explosive 73 | . . . . . . 3 2 6 42 9 2 3 2 4 . . . . . . Electromagnetic 232 | . . . 24 11 . . . . 64 30 55 7 . . . . . . 37 4 Robot Hit Streak 43 | 3 10 17 35 10 . 7 18 20 22 23 18 13 33 43 27 27 19 23 30 7 Robot Miss Streak 8 | 1 4 1 4 2 . 1 2 1 2 3 2 2 2 1 3 4 4 2 8 . Penetration Max 2 | . . . . . . . . . . . . 1 . 1 . 1 2 1 2 1 Secondary Targets 14 | . 2 . 2 2 . . . . . . . . . . . . . 1 7 . Max Gunslinging Chain 1 | . 1 . 1 1 . . . . . . . . . . . . . 1 1 . Shots Hit Robots 1575 | 4 31 14 151 16 . 14 89 22 68 136 92 78 50 120 114 106 58 104 305 3 Core Hits 768 | 1 17 3 65 9 . 9 40 10 87 96 50 39 15 40 45 44 28 16 148 6 Critical Kills 10 | . . . . . . . . . . 1 1 . . 1 1 2 . . 4 . Critical Parts Destroyed 4 | . . . . . . . . . . 2 . . . . . 1 . . 1 . Critical Strikes 87 | . . . 11 . . 1 2 . . 3 4 11 8 18 2 10 . 4 13 . Burn 12 | . . . 11 . . 1 . . . . . . . . . . . . . . Meltdown 4 | . . . . . . . . . . . . . . 1 1 2 . . . . Destroy 12 | . . . . . . . . . . 1 1 . . . . 1 . 4 5 . Blast 55 | . . . . . . . 2 . . . 2 11 8 17 1 7 . . 7 . Corrupt 2 | . . . . . . . . . . . 1 . . . . . . . 1 . Smash 2 | . . . . . . . . . . 2 . . . . . . . . . . Melee Attacks 26 | . . . 1 . . . . . 7 14 . 4 . . . . . . . . Impact 21 | . . . 1 . . . . . 6 14 . . . . . . . . . . Slashing 4 | . . . . . . . . . . . . 4 . . . . . . . . Piercing . | . . . . . . . . . . . . . . . . . . . . . Sneak Attacks 4 | . . . . . . . . . 4 . . . . . . . . . . . Combat Hostiles . | . . . . . . . . . . . . . . . . . . . . . Follow-up Attacks . | . . . . . . . . . . . . . . . . . . . . . Damage Inflicted 51882 | 40 380 190 2480 290 . 498 1966 1037 4556 3457 2704 2832 1898 4271 4298 6009 2157 2334 10180 305 Guns 16700 | 40 380 190 2300 265 . 72 240 283 701 1906 1393 853 312 . 195 377 290 2033 4788 82 Cannons 26311 | . . . . . . 125 1661 191 . 648 771 1744 1333 3963 3961 5632 1867 301 4114 . Explosions 8270 | . . . 175 25 . 301 55 563 3414 792 540 235 253 301 142 . . . 1251 223 Melee 552 | . . . . . . . . . 441 111 . . . . . . . . . . Ramming 49 | . . . 5 . . . 10 . . . . . . 7 . . . . 27 . Kinetic 29859 | 40 380 190 221 . . 125 1901 474 12 2127 1214 2493 1645 3289 826 4195 290 2033 8322 82 Thermal 10973 | . . . 1869 111 . 72 . . 150 105 154 . . 674 3472 1814 1867 301 384 . Explosive 6094 | . . . . . . 301 55 563 3264 736 386 235 253 301 . . . . . . Electromagnetic 4355 | . . . 385 179 . . . . 689 378 950 104 . . . . . . 1447 223 Impact 552 | . . . . . . . . . 441 111 . . . . . . . . . . Slashing . | . . . . . . . . . . . . . . . . . . . . . Piercing . | . . . . . . . . . . . . . . . . . . . . . Highest Corruption 25 | . . . 1 1 1 1 . 7 1 1 1 1 . 3 4 4 3 14 21 25 Average Corruption 4 | . . . 1 1 1 1 . 6 1 1 1 1 . 2 3 4 2 12 15 22 Corruption Purged 6 | . . . . . . . . . . 1 . . . . . . . . 5 . Corruption Blocked . | . . . . . . . . . . . . . . . . . . . . . Effects 266 | . . . 5 7 4 4 . 4 3 1 11 10 . 22 25 49 3 28 85 5 Message Errors 57 | . . . 1 2 . 2 . . . . 3 1 . 6 11 7 . 7 16 1 Matter Fused 53 | . . . 1 1 1 1 . . . 1 4 2 . 5 4 10 2 3 16 2 Heat Flow Errors 35 | . . . 2 1 . . . 1 . . . 1 . 4 3 11 1 3 8 . Energy Discharges 26 | . . . 1 1 1 . . 1 . . . . . 5 1 5 . 1 10 . Parts Rejected 4 | . . . . . . . . . . . . . . . . 1 . 1 2 . Parts Fused 4 | . . . . . . . . . . . . 1 . . . 2 . 1 . . Data Loss (minor) 34 | . . . . . . 1 . 1 2 . 2 4 . . 5 5 . 2 12 . Data Loss (major) 19 | . . . . 2 2 . . . 1 . . . . 2 . 3 . 3 6 . Misfires 9 | . . . . . . . . . . . 2 . . . 1 1 . 1 3 1 Alerts 3 | . . . . . . . . . . . . 1 . . . . . 1 1 . Misdirections 3 | . . . . . . . . . . . . . . . . . . . 2 1 Weapon Failures 19 | . . . . . . . . 1 . . . . . . . 4 . 5 9 . Overload Shots . | . . . . . . . . . . . . . . . . . . . . . Overflow Damage 1796 | . . . 39 . . 21 33 6 236 59 46 37 242 111 236 462 103 . 165 . Projectiles 1307 | . . . . . . 21 33 . . . 29 37 215 111 161 462 103 . 135 . Explosions 391 | . . . 39 . . . . 6 197 . 17 . 27 . 75 . . . 30 . Melee 98 | . . . . . . . . . 39 59 . . . . . . . . . . Knockbacks 93 | . . . . . . 3 17 1 1 3 3 10 5 15 2 14 . . 19 . Impact 1 | . . . . . . . . . 1 . . . . . . . . . . . Kinetic 84 | . . . . . . 3 16 1 . 3 3 9 5 11 2 14 . . 17 . Secondary 8 | . . . . . . . 1 . . . . 1 . 4 . . . . 2 . Self-Inflicted Damage 590 | . . . 10 18 . 91 . 76 . 29 96 24 20 116 32 . . . 78 . Shots 24 | . . . 1 1 . 3 . 3 . 2 3 1 1 3 1 . . . 5 . Rammed 4 | . . . 1 . . . 1 . . . . . . 2 . . . . . . Targets Rammed 5 | . . . 1 . . . 1 . . . . . . 2 . . . . 1 . Kicked . | . . . . . . . . . . . . . . . . . . . . . Crushed 1 | . . . . . . . . . . . . . . . . . . . 1 . Highest Temperature 532 | . 4 . 258 134 . 20 9 101 403 205 48 157 30 360 189 382 517 243 532 48 Average Temperature 84 | . 2 . 96 50 . 7 9 53 84 54 9 36 10 85 39 115 160 125 115 25 Received Heat Transfer 5335 | . 96 48 231 117 . 171 468 45 387 610 141 264 63 678 138 418 90 24 1346 . Effects 32 | . . . . . . . . . 6 1 . . . 3 . 1 7 3 11 . Shutdowns 5 | . . . . . . . . . 1 . . . . . . . 2 . 2 . Energy Bleed 9 | . . . . . . . . . 1 1 . . . 1 . 1 3 . 2 . Interference 10 | . . . . . . . . . 2 . . . . . . . . 3 5 . Matter Decay 2 | . . . . . . . . . 2 . . . . . . . . . . . Short Circuit 1 | . . . . . . . . . . . . . . . . . 1 . . . Damage (minor) 5 | . . . . . . . . . . . . . . 2 . . 1 . 2 . Siege Activations . | . . . . . . . . . . . . . . . . . . . . . Robots Corrupted 5 | . . . . . . . . . . 2 . . . . . . . . 2 1 Combat Hostiles 3 | . . . . . . . . . . . . . . . . . . . 2 1 Parts Fried 22 | . . . 1 1 . . . . 6 1 2 . . . . . . . 10 1 Impact Corruptions 6 | . . . . . . . . . 4 2 . . . . . . . . . . Robots Melted 9 | . . . 2 . . . . . . . . . . 1 3 3 . . . . Combat Hostiles 7 | . . . 2 . . . . . . . . . . 1 2 2 . . . . Parts Melted 53 | . . . 18 . . . . . . . . . . 5 18 10 1 . 1 . Heat Transferred 16813 | . . . 5058 272 . 259 . . 100 161 150 . . 1050 4850 2526 1628 259 500 . Parts Sabotaged . | . . . . . . . . . . . . . . . . . . . . . Parts Stolen . | . . . . . . . . . . . . . . . . . . . . . Parts Stripped . | . . . . . . . . . . . . . . . . . . . . . Power Chain Reactions 16 | . . . 4 1 . . . . 3 1 3 . . . . . . . 4 . Alert | -11 -10 -10 -9 -9 -9 -8 -8 -8 -7 -7 -7 -7 -6 -6 -5 -5 -4 -4 -4 -4 ------- Run | Yrd Mat Min Mat Min Exi Min Mat Gar Fac Gar Fac Gar Fac Gar Fac Gar Fac Was Fac Upp Peak Influence 2184 | 5 198 55 415 135 . 75 283 336 972 1642 900 1431 804 1512 892 2184 1417 381 365 . Initial 993 | . 2 . 18 10 . . . 112 152 485 746 399 650 482 687 304 993 381 86 . Average 605 | 2 62 41 203 32 . 54 123 242 439 1233 706 1015 720 999 601 1279 1194 293 173 . Maximum Alert Level 5 | . . . 2 . . . 1 1 3 5 3 4 3 4 3 5 4 1 1 . Low Security (%) 24 | 100 100 100 43 100 . 100 80 24 8 . . . . . . . . 30 56 . Level 1 18 | . . . 54 . . . 19 75 48 . . . . . 11 10 . 69 43 . Level 2 19 | . . . 1 . . . . . 26 7 46 18 21 23 68 10 . . . . Level 3 19 | . . . . . . . . . 17 29 53 32 78 30 19 17 29 . . . Level 4 13 | . . . . . . . . . . 41 . 48 . 45 . 26 70 . . . Level 5 4 | . . . . . . . . . . 21 . . . . . 36 . . . . High Security . | . . . . . . . . . . . . . . . . . . . . . Max Security . | . . . . . . . . . . . . . . . . . . . . . Squads Dispatched 79 | . . 1 5 . . . 3 . 21 . 11 . 4 . 18 . 2 . 14 . Investigation 30 | . . 1 4 . . . 1 . 8 . 5 . . . 9 . . . 2 . Extermination 21 | . . . . . . . . . 6 . 3 . 2 . 6 . . . 4 . Reinforcement 20 | . . . 1 . . . . . 4 . 3 . . . 3 . 1 . 8 . Assault 2 | . . . . . . . . . 1 . . . . . . . 1 . . . Garrison 6 | . . . . . . . 2 . 2 . . . 2 . . . . . . . Intercept . | . . . . . . . . . . . . . . . . . . . . . Searches Triggered . | . . . . . . . . . . . . . . . . . . . . . Construction Impeded 9 | . . . . . . . . . 2 . 2 . . . 1 . . . 4 . Haulers Reinforced 4 | . . . . . . . . . . . 1 . . . 1 . . . 2 . Active Scanning Responses . | . . . . . . . . . . . . . . . . . . . . . Cargo Convoy Interrupts 1 | . . . . . . . . . . . . . . . . . . . 1 . Stealth | -11 -10 -10 -9 -9 -9 -8 -8 -8 -7 -7 -7 -7 -6 -6 -5 -5 -4 -4 -4 -4 --------- Run | Yrd Mat Min Mat Min Exi Min Mat Gar Fac Gar Fac Gar Fac Gar Fac Gar Fac Was Fac Upp Distress Signals 12 | . . . 3 . . . 1 . 3 . 1 . . . 1 . . . 3 . Communications Jammed . | . . . . . . . . . . . . . . . . . . . . . Distress Signals . | . . . . . . . . . . . . . . . . . . . . . Times Spotted 529 | . 14 3 44 5 . 3 27 10 77 38 19 30 13 28 60 50 30 5 66 7 Peak Tracking Total 13 | . 3 3 5 3 . 3 4 4 11 8 3 7 3 7 9 13 7 3 8 4 Tactical Retreats 44 | . . 1 1 . . . . 1 15 4 . . . 1 8 8 1 . 3 1 Traps | -11 -10 -10 -9 -9 -9 -8 -8 -8 -7 -7 -7 -7 -6 -6 -5 -5 -4 -4 -4 -4 ------- Run | Yrd Mat Min Mat Min Exi Min Mat Gar Fac Gar Fac Gar Fac Gar Fac Gar Fac Was Fac Upp Traps Triggered 41 | . . . 2 . . . 3 1 8 4 4 6 . 4 2 5 1 . 1 . Indirectly . | . . . . . . . . . . . . . . . . . . . . . Trap Hack Attempts 50 | . . . . . . . . . 50 . . . . . . . . . . . Triggered . | . . . . . . . . . . . . . . . . . . . . . Disarmed 1 | . . . . . . . . . 1 . . . . . . . . . . . Reprogrammed 6 | . . . . . . . . . 6 . . . . . . . . . . . Reused 2 | . . . . . . . . . 2 . . . . . . . . . . . Traps Extracted . | . . . . . . . . . . . . . . . . . . . . . Installed . | . . . . . . . . . . . . . . . . . . . . . Triggered 2 | . . . . . . . . . 2 . . . . . . . . . . . Objects Rigged 4 | . . . . . . . . . . . . . . . 4 . . . . . Exploded 1 | . . . . . . . . . . . . . . . 1 . . . . . Machines | -11 -10 -10 -9 -9 -9 -8 -8 -8 -7 -7 -7 -7 -6 -6 -5 -5 -4 -4 -4 -4 ---------- Run | Yrd Mat Min Mat Min Exi Min Mat Gar Fac Gar Fac Gar Fac Gar Fac Gar Fac Was Fac Upp Machines Disabled 75 | . 1 . 2 1 . . . 2 11 3 17 4 . 5 4 9 10 . 6 . Max in Single Turn 6 | . 1 . 1 1 . . . 1 3 1 6 1 . 1 2 1 1 . 4 . Garrison Access 1 | . . . . . . . . . 1 . . . . . . . . . . . Garrison Relay 11 | . . . . . . . . . . 3 . 2 . 2 . 4 . . . . Machines Repaired . | . . . . . . . . . . . . . . . . . . . . . Machines Dismantled . | . . . . . . . . . . . . . . . . . . . . . Machines Sabotaged . | . . . . . . . . . . . . . . . . . . . . . Overloaded Fab Kills . | . . . . . . . . . . . . . . . . . . . . . Hacking | -11 -10 -10 -9 -9 -9 -8 -8 -8 -7 -7 -7 -7 -6 -6 -5 -5 -4 -4 -4 -4 --------- Run | Yrd Mat Min Mat Min Exi Min Mat Gar Fac Gar Fac Gar Fac Gar Fac Gar Fac Was Fac Upp Machines Accessed 92 | . 5 1 10 . 1 . 4 . 23 1 12 2 1 . 25 2 3 . 2 . Terminals 47 | . 3 1 6 . . . 2 . 8 1 6 2 . . 12 2 2 . 2 . Fabricators 12 | . . . . . . . . . 4 . 3 . . . 4 . 1 . . . Repair Stations 9 | . . . 1 . . . 1 . 3 . 1 . . . 3 . . . . . Recycling Units 10 | . 2 . 1 . . . . . 4 . . . . . 3 . . . . . Scanalyzers 7 | . . . 2 . . . . . 2 . 1 . . . 2 . . . . . Garrison Access 6 | . . . . . . . 1 . 2 . 1 . 1 . 1 . . . . . Total Hacks 307 | . 15 2 30 . 1 . 13 . 65 3 36 2 1 . 125 6 4 . 4 . Successful 185 | . 8 . 21 . 1 . 11 . 41 1 22 2 1 . 74 1 2 . . . Failed 121 | . 6 2 9 . . . 2 . 24 2 14 . . . 51 5 2 . 4 . Catastrophic 16 | . . 2 . . . . . . 4 1 3 . . . 5 . . . 1 . Database Lockouts 1 | . 1 . . . . . . . . . . . . . . . . . . . Manual 172 | . 10 . 21 . 1 . 6 . 37 2 15 . . . 74 1 1 . 4 . Terminals 169 | . 11 2 18 . . . 6 . 25 3 13 2 . . 76 6 3 . 4 . Fabricators 53 | . . . . . . . . . 22 . 8 . . . 22 . 1 . . . Repair Stations 25 | . . . 4 . . . 6 . 5 . 1 . . . 9 . . . . . Recycling Units 22 | . 4 . 2 . . . . . 9 . . . . . 7 . . . . . Scanalyzers 29 | . . . 6 . . . . . 2 . 11 . . . 10 . . . . . Garrison Access 8 | . . . . . . . 1 . 2 . 3 . 1 . 1 . . . . . Terminal Hacks 37 | . 3 . 2 . 1 . 1 . 4 1 3 2 . . 18 1 1 . . . Part Schematic 6 | . . . . . . . . . 1 . 2 . . . 3 . . . . . Robot Schematic 4 | . . . . . . . . . 1 . 1 . . . 2 . . . . . Robot Analysis 4 | . 2 . 2 . . . . . . . . . . . . . . . . . Open DSF 1 | . . . . . . . . . . . . . . . . . 1 . . . Branch Access Points 2 | . . . . . . . . . 1 . . . . . 1 . . . . . Emergency Access Points 3 | . . . . . . . . . . 1 . 1 . . . 1 . . . . Terminal Index 2 | . . . . . . . . . . . . . . . 2 . . . . . Garrison Index 2 | . . . . . . . 1 . . . . . . . 1 . . . . . Unreport Threat 5 | . 1 . . . . . . . 1 . . . . . 3 . . . . . Dispatch Records 1 | . . . . . . . . . . . . . . . 1 . . . . . Recall Extermination 1 | . . . . . . . . . . . . . . . 1 . . . . . Recall Reinforcements 1 | . . . . . . . . . . . . . . . 1 . . . . . Hauler Manifests 1 | . . . . . . . . . . . . . . . 1 . . . . . Registered Components 1 | . . . . . . . . . . . . . . . 1 . . . . . Zone Layout 1 | . . . . . . . . . . . . . . . 1 . . . . . Security Stations 1 | . . . . . . . . . . . . 1 . . . . . . . . Derelict Proto ID Bank 1 | . . . . . 1 . . . . . . . . . . . . . . . Fabricator Hacks 16 | . . . . . . . . . 5 . 3 . . . 8 . . . . . Network Status 2 | . . . . . . . . . 1 . 1 . . . . . . . . . Load Schematic 8 | . . . . . . . . . 2 . 1 . . . 5 . . . . . Build 6 | . . . . . . . . . 2 . 1 . . . 3 . . . . . Repair Station Hacks 16 | . . . 4 . . . 6 . 2 . . . . . 4 . . . . . Scan Component 9 | . . . 2 . . . 3 . 1 . . . . . 3 . . . . . Repair 7 | . . . 2 . . . 3 . 1 . . . . . 1 . . . . . Recycling Unit Hacks 10 | . 2 . 1 . . . . . 6 . . . . . 1 . . . . . Process 2 | . . . . . . . . . 2 . . . . . . . . . . . Retrieve Matter 3 | . . . . . . . . . 3 . . . . . . . . . . . Retrieve Components 5 | . 2 . 1 . . . . . 1 . . . . . 1 . . . . . Scanalyzer 24 | . . . 4 . . . . . . . 10 . . . 10 . . . . . Insert Component 11 | . . . 2 . . . . . . . 5 . . . 4 . . . . . Analyze 13 | . . . 2 . . . . . . . 5 . . . 6 . . . . . Garrison Access Hacks 6 | . . . . . . . 1 . 2 . 1 . 1 . 1 . . . . . Unlock Access 5 | . . . . . . . 1 . 1 . 1 . 1 . 1 . . . . . Seal Access 1 | . . . . . . . . . 1 . . . . . . . . . . . Unauthorized Hacks 76 | . 3 . 10 . . . 3 . 22 . 5 . . . 32 . 1 . . . Terminals 39 | . 3 . 7 . . . 3 . 7 . 1 . . . 18 . . . . . Track 9 | . . . 1 . . . . . . . 1 . . . 7 . . . . . Assimilate 5 | . . . . . . . . . 2 . . . . . 3 . . . . . Botnet 20 | . 3 . 5 . . . 2 . 4 . . . . . 6 . . . . . Detonate 1 | . . . . . . . . . . . . . . . 1 . . . . . Disrupt 1 | . . . . . . . . . 1 . . . . . . . . . . . Operators 3 | . . . 1 . . . 1 . . . . . . . 1 . . . . . Fabricators 26 | . . . . . . . . . 14 . 3 . . . 8 . 1 . . . Report 3 | . . . . . . . . . 2 . . . . . 1 . . . . . Prioritize 5 | . . . . . . . . . 4 . . . . . 1 . . . . . Liberate 12 | . . . . . . . . . 4 . 3 . . . 4 . 1 . . . Fabnet 3 | . . . . . . . . . 3 . . . . . . . . . . . Haulers 1 | . . . . . . . . . 1 . . . . . . . . . . . Recompile 2 | . . . . . . . . . . . . . . . 2 . . . . . Repair Stations 2 | . . . . . . . . . 1 . . . . . 1 . . . . . Mechanics 2 | . . . . . . . . . 1 . . . . . 1 . . . . . Recycling Units 6 | . . . 1 . . . . . . . . . . . 5 . . . . . Reject 4 | . . . 1 . . . . . . . . . . . 3 . . . . . Recyclers 1 | . . . . . . . . . . . . . . . 1 . . . . . Mask 1 | . . . . . . . . . . . . . . . 1 . . . . . Scanalyzers 2 | . . . 2 . . . . . . . . . . . . . . . . . Extract 2 | . . . 2 . . . . . . . . . . . . . . . . . Garrison Access 1 | . . . . . . . . . . . 1 . . . . . . . . . Intercept 1 | . . . . . . . . . . . 1 . . . . . . . . . Data Cores Recovered . | . . . . . . . . . . . . . . . . . . . . . Used . | . . . . . . . . . . . . . . . . . . . . . Hacking Detections 77 | . 3 1 8 . . . 2 . 19 1 11 1 1 . 23 2 3 . 2 . Full Trace Events 30 | . 2 1 4 . . . 1 . 8 1 4 . . . 7 1 . . 1 . Feedback Events . | . . . . . . . . . . . . . . . . . . . . . Feedback Blocked . | . . . . . . . . . . . . . . . . . . . . . Robot Schematics Acquired 4 | . . . . . . . . . 1 . 1 . . . 2 . . . . . Robots Built 9 | . . . . . . . . . 3 . 2 . . . 4 . . . . . Authchips 2 | . . . . . . . . . . . . . . . 2 . . . . . Time 344 | . . . . . . . . . 76 . 116 . . . 152 . . . . . Total Robot Build Rating 41 | . . . . . . . . . 15 . 6 . . . 20 . . . . . Part Schematics Acquired 43 | . . . 28 . . . . . 1 . 7 . . . 7 . . . . . Parts Built 2 | . . . . . . . . . 2 . . . . . . . . . . . Authchips . | . . . . . . . . . . . . . . . . . . . . . Time 184 | . . . . . . . . . 117 . . . . . 67 . . . . . Total Part Build Rating 14 | . . . . . . . . . 14 . . . . . . . . . . . Parts Repaired 7 | . . . 2 . . . 3 . 1 . . . . . 1 . . . . . Time 181 | . . . 64 . . . 78 . 25 . . . . . 14 . . . . . Parts Recycled . | . . . . . . . . . . . . . . . . . . . . . Recycled Matter 279 | . . . . . . . . . 279 . . . . . . . . . . . Retrieved Matter . | . . . . . . . . . . . . . . . . . . . . . Retrieved Components 13 | . 4 . 6 . . . . . 1 . . . . . 2 . . . . . Parts Scanalyzed 11 | . . . 2 . . . . . . . 5 . . . 4 . . . . . Part Schematics Acquired 11 | . . . 2 . . . . . . . 5 . . . 4 . . . . . Parts Damaged 1 | . . . . . . . . . . . . . . . 1 . . . . . Bothacking | -11 -10 -10 -9 -9 -9 -8 -8 -8 -7 -7 -7 -7 -6 -6 -5 -5 -4 -4 -4 -4 ------------ Run | Yrd Mat Min Mat Min Exi Min Mat Gar Fac Gar Fac Gar Fac Gar Fac Gar Fac Was Fac Upp Used RIF Installer 5 | . . . . . . . . 1 . 1 . 1 . 1 . 1 . . . . Coupler Efficiency 1 | . . . . . . . . . . 1 . . . . . . . . . . Patrol Navigation 1 | . . . . . . . . . . . . . . . . 1 . . . . Structural Interface 1 | . . . . . . . . . . . . 1 . . . . . . . . Autooverride 1 | . . . . . . . . . . . . . . 1 . . . . . . Robots Hacked 34 | . . . . . . . . . 1 . 5 . 6 7 2 . 2 6 5 . Non-combat 12 | . . . . . . . . . 1 . 5 . 4 . . . 2 . . . Combat 22 | . . . . . . . . . . . . . 2 7 2 . . 6 5 . Autooverrided 1 | . . . . . . . . . . . . . . . . . . . 1 . Robot Hacks Applied 31 | . . . . . . . . . 1 . 5 . 4 3 . . 3 11 4 . parse_system 1 | . . . . . . . . . 1 . . . . . . . . . . . find_fabricator 1 | . . . . . . . . . . . . . . . . . 1 . . . find_recycling 1 | . . . . . . . . . . . . . 1 . . . . . . . ignore_targets 11 | . . . . . . . . . . . . . . . . . . 11 . . overwrite_iff 1 | . . . . . . . . . . . . . . 1 . . . . . . streamctrl_high 1 | . . . . . . . . . . . . . . . . . . . 1 . formatsys_low 9 | . . . . . . . . . . . 5 . 2 . . . 2 . . . formatsys_high 6 | . . . . . . . . . . . . . 1 2 . . . . 3 . Relay Couplers Released 51 | . . . . . . . . . . 14 . 8 . 10 . 15 4 . . . Machine Destruction 47 | . . . . . . . . . . 14 . 8 . 10 . 15 . . . . Programmers 4 | . . . . . . . . . . . . . . . . . 4 . . . Attached 8 | . . . . . . . . . . . 1 . 1 2 . 1 . 1 2 . Fabnet Peak Effective % 9 | . . . . . . . . . . . . . 9 9 3 3 . . . . Autooverrided 9 | . . . . . . . . . . . . . 2 5 2 . . . . . Robots Rewired 2 | . . . . . . . . . . . . . 2 . . . . . . . Allies Hacked 1 | . . . . . . . . . . . . . 1 . . . . . . . Hacks Repelled . | . . . . . . . . . . . . . . . . . . . . . Allies | -11 -10 -10 -9 -9 -9 -8 -8 -8 -7 -7 -7 -7 -6 -6 -5 -5 -4 -4 -4 -4 -------- Run | Yrd Mat Min Mat Min Exi Min Mat Gar Fac Gar Fac Gar Fac Gar Fac Gar Fac Was Fac Upp Total Allies 64 | . . . . 1 . . . . 10 2 7 . 7 9 17 1 5 . 5 . Largest Group 8 | . . . . 1 1 . . . 5 2 5 5 8 5 7 4 4 2 3 . Highest-Rated Group 215 | . . . . 31 31 . . . 106 190 49 49 157 178 215 96 141 94 141 . Highest-Rated Ally 95 | . . . . 31 31 . . . 29 95 19 13 40 85 54 51 51 47 47 . Total Orders 18 | . . . . . . . . . . . 1 6 1 4 2 4 . . . . STAY 4 | . . . . . . . . . . . . 1 . . 1 2 . . . . ROAM 1 | . . . . . . . . . . . 1 . . . . . . . . . FOLLOW 6 | . . . . . . . . . . . . 2 . 1 1 2 . . . . TUNNEL 6 | . . . . . . . . . . . . 3 . 3 . . . . . . DROP 1 | . . . . . . . . . . . . . 1 . . . . . . . Ally Attacks 331 | . . . . . . . . . 50 3 . . 21 22 104 45 16 55 15 . Total Damage 7715 | . . . . . . . . . 708 253 . . 585 937 2175 741 617 1264 435 . Kills 50 | . . . . . . . . . 5 2 . . 2 6 20 7 3 3 2 . Allies Corrupted 3 | . . . . . . . . . . . . . 1 1 . . . 1 . . Allies Melted 2 | . . . . . . . . . . . . . . 1 1 . . . . . Intel | -11 -10 -10 -9 -9 -9 -8 -8 -8 -7 -7 -7 -7 -6 -6 -5 -5 -4 -4 -4 -4 ------- Run | Yrd Mat Min Mat Min Exi Min Mat Gar Fac Gar Fac Gar Fac Gar Fac Gar Fac Was Fac Upp Robot Analysis Total 4 | . 2 . 2 . . . . . . . . . . . . . . . . . Derelict Logs Recovered 1 | . . . . 1 . . . . . . . . . . . . . . . . Drone Launches . | . . . . . . . . . . . . . . . . . . . . . Drone Recoveries . | . . . . . . . . . . . . . . . . . . . . . Exploration | -11 -10 -10 -9 -9 -9 -8 -8 -8 -7 -7 -7 -7 -6 -6 -5 -5 -4 -4 -4 -4 ------------- Run | Yrd Mat Min Mat Min Exi Min Mat Gar Fac Gar Fac Gar Fac Gar Fac Gar Fac Was Fac Upp Turns Passed 25498 | 85 626 185 2449 1205 578 528 1120 282 2435 1612 2219 1367 628 2206 2837 2160 486 572 1828 90 Spaces Moved 16637 | 69 372 116 893 463 235 205 435 118 4559 844 1229 823 302 896 2893 864 223 212 679 207 Core 9 | 9 . . . . . . . . . . . . . . . . . . . . Treads 4902 | . . . 739 463 235 205 435 118 23 307 232 . 89 896 405 . . 188 567 . Legs 1362 | . . . . . . . . . . 155 . . . . 37 864 223 24 59 . Wheels 2735 | 60 372 116 154 . . . . . . . 997 823 213 . . . . . . . Hover . | . . . . . . . . . . . . . . . . . . . . . Flight 7629 | . . . . . . . . . 4536 382 . . . . 2451 . . . 53 207 Fastest Speed 17 | 50 80 140 110 240 240 240 157 157 22 21 108 108 129 157 20 120 120 120 32 17 Average Speed 107 | 76 135 140 217 240 240 240 173 157 25 112 146 121 162 201 49 184 132 159 167 27 Slowest Speed 2455 | 80 140 140 240 240 240 240 480 157 340 240 250 146 237 237 320 190 190 240 2455 112 Overloaded Moves 198 | . . . . . . . . . . . . . . . 112 . . . . 86 Propulsion Burnouts . | . . . . . . . . . . . . . . . . . . . . . Robots Hopped 44 | . . . . . . . . . 29 . . . . . 15 . . . . . Cave-ins Triggered . | . . . . . . . . . . . . . . . . . . . . . Exploration Rate (%) 50 | 5 73 22 77 85 63 52 35 26 69 86 39 71 10 69 52 95 7 82 13 25 Regions Visited 20 Branch Regions 5 Pre-discovered Areas . | . . . . . . . . . . . . . . . . . . . . . Known Exits Taken 5 | . . . . . . . 1 . 1 . 1 . 1 . 1 . . . . . Unknown Exits Taken 8 | 1 1 1 1 1 1 1 . . . . . . . . . . . . 1 . Scrap Searched 2 | . . . . 1 . 1 . . . . . . . . . . . . . . Spaces Dug 92 | . . . 1 . . . 17 3 35 1 . 1 . . 34 . . . . . Terrain Destroyed 975 | . . . 3 6 . 5 42 20 286 112 153 44 30 62 114 26 3 . 69 . Melee 3 | . . . 1 . . . . . . 1 . 1 . . . . . . . . Projectile 244 | . . . . . . . 7 . . 3 39 31 15 9 66 26 3 . 45 . AOE 727 | . . . 2 6 . 5 35 20 286 108 114 12 15 53 48 . . . 23 . Terrain Rammed . | . . . . . . . . . . . . . . . . . . . . . Walls Destroyed . | . . . . . . . . . . . . . . . . . . . . . Machines Disabled . | . . . . . . . . . . . . . . . . . . . . . Actions | -11 -10 -10 -9 -9 -9 -8 -8 -8 -7 -7 -7 -7 -6 -6 -5 -5 -4 -4 -4 -4 --------- Run | Yrd Mat Min Mat Min Exi Min Mat Gar Fac Gar Fac Gar Fac Gar Fac Gar Fac Was Fac Upp Total 22290 | 91 446 124 1217 536 252 227 694 185 5673 1339 1543 1074 394 1153 4113 1200 348 344 1099 238 Wait 2789 | . 25 . 103 61 9 . 111 36 751 208 176 112 23 96 913 92 26 17 30 . Move 16532 | 68 371 115 892 462 234 204 435 117 4502 842 1228 822 302 895 2861 863 223 211 678 207 Hop 43 | . . . . . . . . . 28 . . . . . 15 . . . . . Pick Up 565 | 11 21 . 46 1 3 4 38 3 53 55 23 15 14 30 77 42 19 15 86 9 Fast Attach . | . . . . . . . . . . . . . . . . . . . . . Attach 258 | 7 1 1 13 . 1 1 16 3 27 22 6 4 6 10 32 9 15 8 69 7 Detach 22 | . . . . . 1 . . . 4 2 . . . . 7 . 1 . 4 3 Swap 219 | . 2 . 18 . . 2 10 4 32 14 14 6 7 22 23 27 9 3 26 . Drop 376 | . 2 . 38 1 4 3 23 2 46 29 20 13 12 21 50 32 8 17 49 6 Fire 1176 | 5 24 8 105 11 . 13 60 20 94 107 60 53 30 75 120 111 47 73 154 6 Melee 26 | . . . 1 . . . . . 7 14 . 4 . . . . . . . . Ram 1 | . . . . . . . . . . . . . . . . . . . 1 . Kick . | . . . . . . . . . . . . . . . . . . . . . Crush 5 | . . . 1 . . . 1 . . . . . . 2 . . . . 1 . Escape Stasis 227 | . . . . . . . . . 79 46 16 45 . 2 15 24 . . . . Rewire 1 | . . . . . . . . . . . . . . . . . . . 1 . Trap 50 | . . . . . . . . . 50 . . . . . . . . . . . Miscellaneous . | . . . . . . . . . . . . . . . . . . . . . Route ------- -11/Scrapyard -10/Materials (discovered 4 exits: *Mat x3 / *Min) -10/Mines -9/Materials (discovered 3 exits: *Mat x2 / [*Min]) -9/Mines (discovered 3 exits: *Mat x2 / *Exi) -9/Exiles -8/Mines -8/Materials -8/Garrison -7/Factory (discovered 7 exits: *Fac x2 / *Sto x2 / *Low x2 / Gar) -7/Garrison (discovered 3 exits: *Fac x3) -7/Factory (discovered 2 exits: *Sto / Gar) -7/Garrison -6/Factory -6/Garrison (discovered 2 exits: *Fac x2) -5/Factory (discovered 5 exits: *Fac x2 / Upp x2 / Gar) -5/Garrison (discovered 3 exits: *Fac x3) -4/Factory -4/Waste -4/Factory -4/Upper Caves History --------- Turn | Location | Event 4 | -11/Scrapyard | Discovered new exit (range 16) 86 | -11/Scrapyard | Entered Materials 131 | -10/Materials | Discovered new exit (range 16) 302 | -10/Materials | Build established: Mutant 342 | -10/Materials | Discovered new exit (range 16) 526 | -10/Materials | Discovered new exit (range 8) 534 | -10/Materials | Central database locked down 627 | -10/Materials | Discovered new exit (range 7) 712 | -10/Materials | Entered Mines 885 | -10/Mines | Discovered new exit (range 8) 897 | -10/Mines | Entered Materials 897 | -9/Materials | Evolved 2 slots: Propulsion x2 1585 | -9/Materials | Repaired Cooling System 1619 | -9/Materials | Repaired Beam Rifle 1744 | -9/Materials | Discovered new exit (range 8) 2097 | -9/Materials | Build established: Scavenger-Mutant 2355 | -9/Materials | Discovered new exit (range 15) 2766 | -9/Materials | Destroyed 7 combat bots 2967 | -9/Materials | Discovered new exit (range 10) 3346 | -9/Materials | Entered Mines 3426 | -9/Mines | Discovered new exit (range 10) 3515 | -9/Mines | Learned Materials emergency access door positions 3548 | -9/Mines | Found a damaged Exp. Sensor Array with a note attached 3995 | -9/Mines | Found a hidden stash of uninstalled traps 4099 | -9/Mines | Core integrity fell below 50% 4212 | -9/Mines | YI-UF0 nonchalantly dropped a Grenade Launcher on the ground 4246 | -9/Mines | Discovered new exit (range 15) 4515 | -9/Mines | Received a Mining Laser from a helpful Derelict 4541 | -9/Mines | Deemed a non-threat by the Exiles lab entrance 4541 | -9/Mines | Discovered new exit (range 5) 4551 | -9/Mines | Entered Exiles 4551 | -9/Exiles | Accompanied by 1 ally 4607 | -9/Exiles | Met 8R-AWN 4650 | -9/Exiles | Met EX-HEX 4721 | -9/Exiles | Met EX-BIN 4755 | -9/Exiles | Aligned with FarCom system 4757 | -9/Exiles | Given EX-Vault access code 4812 | -9/Exiles | Opened EX-Vault 4829 | -9/Exiles | Found Superbattery 4881 | -9/Exiles | Warned to stay clear of 0b10 Research branches 4948 | -9/Exiles | Met EX-DEC 5109 | -9/Exiles | Discovered new exit (range 10) 5129 | -9/Exiles | Left Exiles lab with Superbattery 5129 | -9/Exiles | Entered Mines 5623 | -8/Mines | Discovered new exit (range 3) 5657 | -8/Mines | Entered Materials 5657 | -8/Materials | Evolved 2 slots: Propulsion x2 5996 | -8/Materials | Lost 3 parts (1p2n) 6350 | -8/Materials | Repaired Lgt. Treads 6378 | -8/Materials | Repaired Lgt. Treads 6406 | -8/Materials | Repaired Lgt. Treads 6673 | -8/Materials | Garrison activated, responded to threat 6777 | -8/Materials | Identified exit to Garrison 6777 | -8/Materials | Entered Garrison 6844 | -8/Garrison | Triggered checkpoint 6856 | -8/Garrison | Triggered checkpoint 6944 | -8/Garrison | Discovered new exit (range 10) 6983 | -8/Garrison | Installed Relay Interface Framework 7059 | -8/Garrison | Entered Factory 7059 | -7/Factory | Evolved 2 slots: Utility x1, Weapon x1 7191 | -7/Factory | Repaired Imp. Flight Unit 7261 | -7/Factory | Discovered new exit (range 16) 7316 | -7/Factory | Discovered new exit (range 13) 7339 | -7/Factory | Discovered new exit (range 6) 7442 | -7/Factory | Discovered new exit (range 8) 7539 | -7/Factory | Build established: Hacker-Sprinter 7640 | -7/Factory | Fabricated Impulse Thruster (x2) 8085 | -7/Factory | Identified exit to Storage 8085 | -7/Factory | Identified exit to Lower Caves 8955 | -7/Factory | Garrison activated, responded to threat 8996 | -7/Factory | Fabricated G-50 Soldier (x3) 9090 | -7/Factory | Discovered new exit (range 16) 9459 | -7/Factory | First assault squad dispatched 9494 | -7/Factory | Identified exit to Garrison 9494 | -7/Factory | Entered Garrison 9611 | -7/Garrison | Garrison Relay disabled 9618 | -7/Garrison | Triggered checkpoint 9621 | -7/Garrison | Found embedded Infiltrators 9653 | -7/Garrison | Discovered new exit (range 10) 9656 | -7/Garrison | Triggered checkpoint 9731 | -7/Garrison | Garrison Relay disabled 9858 | -7/Garrison | Triggered checkpoint 10074 | -7/Garrison | Triggered checkpoint 10094 | -7/Garrison | Garrison Relay disabled 10128 | -7/Garrison | Discovered new exit (range 10) 10129 | -7/Garrison | Build established: Scavenger-Skirmisher 10184 | -7/Garrison | Triggered checkpoint 10245 | -7/Garrison | Core integrity fell below 50% 10426 | -7/Garrison | Lost 6 parts (1p2n3w) 10751 | -7/Garrison | Triggered checkpoint 10969 | -7/Garrison | Discovered new exit (range 11) 11007 | -7/Garrison | Expanded RIF knowledge: Coupler Efficiency 11106 | -7/Garrison | Entered Factory 11168 | -7/Factory | Identified exit to Garrison 12214 | -7/Factory | Fabricated W-25 Informer? 13157 | -7/Factory | Discovered exit to Storage (range 7) 13325 | -7/Factory | Entered Garrison 13325 | -7/Garrison | Accompanied by 5 allies 13377 | -7/Garrison | Triggered checkpoint 13386 | -7/Garrison | Core integrity fell below 20% 13476 | -7/Garrison | Garrison Relay disabled 13511 | -7/Garrison | Triggered checkpoint 13550 | -7/Garrison | Build established: Commander-Skirmisher 13553 | -7/Garrison | Triggered checkpoint 13655 | -7/Garrison | Destroyed 16 combat bots 13823 | -7/Garrison | Discovered new exit (range 10) 13875 | -7/Garrison | Garrison Relay disabled 14097 | -7/Garrison | Spotted B-75 Beast 14110 | -7/Garrison | Destroyed B-75 Beast 14265 | -7/Garrison | Triggered checkpoint 14357 | -7/Garrison | Learned Factory security intel 14387 | -7/Garrison | Triggered checkpoint 14458 | -7/Garrison | Expanded RIF knowledge: Structural Interface 14692 | -7/Garrison | Entered Factory 14692 | -6/Factory | Accompanied by 4 allies 14692 | -6/Factory | Evolved 2 slots: Utility x2 14699 | -6/Factory | Local machine network offline 15192 | -6/Factory | Garrison activated, responded to threat 15305 | -6/Factory | Identified exit to Garrison 15320 | -6/Factory | Entered Garrison 15320 | -6/Garrison | Accompanied by 4 allies 15368 | -6/Garrison | Triggered checkpoint 15431 | -6/Garrison | Garrison Relay disabled 15644 | -6/Garrison | Spotted B-75 Beast 15691 | -6/Garrison | Destroyed B-75 Beast 15703 | -6/Garrison | Lost 4 allies 15747 | -6/Garrison | Found Relay Coupler [Proto] 15844 | -6/Garrison | Triggered checkpoint 15847 | -6/Garrison | Local machine network offline 15847 | -6/Garrison | Triggered checkpoint 15859 | -6/Garrison | Spotted B-75 Beast 15869 | -6/Garrison | Triggered checkpoint 15882 | -6/Garrison | Destroyed B-75 Beast 15904 | -6/Garrison | Lost 4 allies 16236 | -6/Garrison | Lost 3 parts (2n1w) 16303 | -6/Garrison | Build established: Skirmisher 16454 | -6/Garrison | Expanded RIF knowledge: Autooverride 16531 | -6/Garrison | Discovered new exit (range 12) 16972 | -6/Garrison | Build established: Tank 17222 | -6/Garrison | Triggered checkpoint 17252 | -6/Garrison | Garrison Relay disabled 17356 | -6/Garrison | Triggered checkpoint 17361 | -6/Garrison | Discovered new exit (range 13) 17450 | -6/Garrison | Rescued a captive Derelict 17459 | -6/Garrison | Rescued a captive Derelict 17526 | -6/Garrison | Entered Factory 17526 | -5/Factory | Accompanied by 3 allies 17526 | -5/Factory | Evolved 2 slots: Utility x2 17533 | -5/Factory | Build established: Skirmisher 17916 | -5/Factory | Discovered new exit (range 10) 18314 | -5/Factory | Build established: Hacker-Sprinter 19134 | -5/Factory | Identified exit to Upper Caves 19158 | -5/Factory | Discovered new exit (range 21) 19183 | -5/Factory | Fabricated H-66 Slayer (x2) 19592 | -5/Factory | Fabricated H-66 Slayer (x2) 20198 | -5/Factory | Build established: Hacker-Skirmisher 20202 | -5/Factory | Repaired Broken Imp. Treads 20362 | -5/Factory | Identified exit to Garrison 20363 | -5/Factory | Entered Garrison 20363 | -5/Garrison | Accompanied by 4 allies 20443 | -5/Garrison | Triggered checkpoint 20481 | -5/Garrison | Expanded RIF knowledge: Patrol Navigation 20573 | -5/Garrison | Triggered checkpoint 20593 | -5/Garrison | Garrison Relay disabled 20727 | -5/Garrison | Spotted B-75 Beast 20739 | -5/Garrison | Destroyed B-75 Beast 20763 | -5/Garrison | Triggered checkpoint 20850 | -5/Garrison | Destroyed 10 combat bots 21065 | -5/Garrison | Discovered new exit (range 10) 21081 | -5/Garrison | Build established: Scavenger-Tank 21119 | -5/Garrison | Triggered checkpoint 21213 | -5/Garrison | Garrison Relay disabled 21349 | -5/Garrison | Triggered checkpoint 21428 | -5/Garrison | Discovered new exit (range 21) 21470 | -5/Garrison | Triggered checkpoint 21740 | -5/Garrison | Triggered checkpoint 21742 | -5/Garrison | Build established: Scavenger-Skirmisher 21817 | -5/Garrison | Garrison Relay disabled 21863 | -5/Garrison | Rescued a captive Derelict 21902 | -5/Garrison | Discovered new exit (range 14) 22370 | -5/Garrison | Spotted B-75 Beast 22377 | -5/Garrison | Destroyed B-75 Beast 22473 | -5/Garrison | Garrison Relay disabled 22523 | -5/Garrison | Entered Factory 22523 | -4/Factory | Accompanied by 2 allies 22523 | -4/Factory | Evolved 2 slots: Power x1, Utility x1 22557 | -4/Factory | Identified exit to DSF 22702 | -4/Factory | Build established: Bothacker-Skirmisher 22768 | -4/Factory | Lost 3 allies 22773 | -4/Factory | First assault squad dispatched 22807 | -4/Factory | Lost 3 parts (1n2u) 22944 | -4/Factory | Lost 4 parts (1p1n1u1w) 23009 | -4/Factory | Sucked down chute 23009 | -4/Factory | Entered Waste 23018 | -4/Waste | Found Prototype Device 23023 | -4/Waste | Spotted C-40 Crusher 23024 | -4/Waste | EMP discharged 23029 | -4/Waste | 2 allies followed down the chute 23051 | -4/Waste | Spotted C-40 Crusher 23051 | -4/Waste | Allies destroyed C-40 Crusher 23055 | -4/Waste | Spotted C-40 Crusher 23057 | -4/Waste | Spotted C-40 Crusher 23090 | -4/Waste | Allies destroyed C-40 Crusher 23095 | -4/Waste | Spotted C-40 Crusher 23108 | -4/Waste | Allies destroyed C-40 Crusher 23124 | -4/Waste | EMP discharged 23124 | -4/Waste | System corruption reached 10% 23126 | -4/Waste | Found Damper Plating 23161 | -4/Waste | Spotted C-40 Crusher 23200 | -4/Waste | Destroyed C-40 Crusher 23224 | -4/Waste | EMP discharged 23230 | -4/Waste | Destroyed C-40 Crusher 23324 | -4/Waste | EMP discharged 23363 | -4/Waste | Build established: Scavenger-Skirmisher 23414 | -4/Waste | Discovered new exit (range 12) 23424 | -4/Waste | EMP discharged 23445 | -4/Waste | Destroyed C-40 Crusher 23524 | -4/Waste | EMP discharged 23581 | -4/Waste | Entered Factory 24256 | -4/Factory | Lost 4 parts (2u2w) 24417 | -4/Factory | Discovered new exit (range 3) 24593 | -4/Factory | Build established: Scavenger-Tank 24751 | -4/Factory | P-70 Sage assimilated allied Veteran 7c 24756 | -4/Factory | P-70 Sage assimilated allied Veteran 7a 24770 | -4/Factory | Cargo convoy interrupted 24850 | -4/Factory | Lost 5 parts (1p2n2w) 24851 | -4/Factory | Found Prototype Device 24879 | -4/Factory | Found Prototype Processor 24880 | -4/Factory | Identified Exp. Core Analyzer 24881 | -4/Factory | Identified Adv. Kinecellerator 24885 | -4/Factory | Found Adv. Kinecellerator 24954 | -4/Factory | Found Adv. Kinecellerator 25034 | -4/Factory | Core integrity fell below 50% 25064 | -4/Factory | Lost 9 parts (2p2n5u) 25080 | -4/Factory | Found Prototype Processor 25081 | -4/Factory | Identified Exp. Signal Interpreter 25184 | -4/Factory | Found Prototype Launcher 25185 | -4/Factory | Identified Com. Tesla Bomb Launcher 25205 | -4/Factory | Found Com. Tesla Bomb Launcher 25210 | -4/Factory | Found Com. Tesla Bomb Launcher 25224 | -4/Factory | Lost 11 parts (2p3n6u) 25292 | -4/Factory | Lost 4 parts (1p2n1u) 25309 | -4/Factory | Core integrity fell below 20% 25354 | -4/Factory | Lost 11 parts (1p4n3u3w) 25409 | -4/Factory | Entered Upper Caves 25499 | -4/Upper Caves | Destroyed by H-77 Assassin with Coil Gun Last Messages --------------- 25459_ Acquired Lgt. Antimatter Cannon. 25462_ Acquired Com. Tesla Bomb Launcher. 25463_ System corrupted: Matter fused (-8). 25465_ Acquired 24 matter. 25466_ Dropped Prc. Phase Gun. 25467_ Acquired Corrupted VTOL Module. 25468_ Integrated Corrupted VTOL Module (+4). 25469_ Acquired Prc. Phase Gun. 25483_ W/,YVM>T,%YH&BS0|THY8BFHTGLG 25486_ C-30 ARC bursts open, deploying its payload. 25486_ H-77 Assassin unfolds itself. 25486_ Penetrated by Slug. 25496_ Critical hit (Destroy). 25496_ Stasis Canceller destroyed. 25496_ Penetrated by Slug. 25498_ H-77 Assassin system terminally corrupted. 25498_ Imp. Targeting Computer fried. 25499_ Penetrated by Slug. Map ----- +----------------------------------------------------+ | ???????????????????????????????????????????## | | ???????????????????????????????? ????####???### | | ???????????????????????????????# ##?## #????## | | ???????????????????????????????# ? ##???## | | ??????????????????????# #??????# #??## | | ?????????????????????# ??????# #??# #?# | | ????????????????????## ?????# $#?????# ## | | ???????????????????? #????#" ####??# | | ????????????????????? ##?##%" ##?# | | ?????????????????????? ## " #### | | ???????????????????????? #?#### | | ?????????????????????????# ?# ##???### | | ?????????????????????????# *% #?# ####??## | | ??????????????????????????# [ ### ##??# | | ??????????????????????????# #??# | | ????????????????????????????# ##?# | | ???????????????????????????## ### | | ??????????????????????????## ## ## | | ????????????????????????### ## ### | | ???????????????????????## ## ## ### | | ??????????????????????## ## ### ## | | ??????????????????????# #####?# | | ??????????????????????# #?????# | | ??????????????????????# ##?????# | | ??????????????????????## ##??##?## | | ???????????????????????# @ ### #### # | | ???????????????????????# ## ### | | ???????????????????????## ## ##?? | | ????????????????????????### ## ##??? | | ??????????????????????????## # #???? | | ???????????????????????????#### ### ## #???? | | ??????????????????????????????## #?########???? | | ???????????????????????????????######????????????? | | ?????????????????????????????????????????????????? | | ?????????????????????????????????????????????????? | | ?????????????????????????????????????????????????? | | ?????????????????????????????????????????????????? | | ?????????????????????????????????????????????????? | | ?????????????????????????????????????????????????? | | ?????????????????????????????????????????????????? | | ?????????????????????????????????????????????????? | | ?????????????????????????????????????????????????? | | ?????????????????????????????????????????????????? | | ?????????????????????????????????????????????????? | | ?????????????????????????????????????????????????? | | ?????????????????????????????????????????????????? | | ?????????????????????????????????????????????????? | | ?????????????????????????????????????????????????? | | | | | +----------------------------------------------------+ Best States ------------- Heat Dissipation 101 Coolant Potential 50 Energy Generation 45 Energy Capacity 1850 Matter Stores 550 Matter Capacity 550 Sight Range 22 Terrain Scan Density 10 Additional Mass Support 9 EM Shielding 2 Armor Coverage 1600 Resistance: KI 20 Resistance: TH 50 Resistance: EX 20 Resistance: EM 100 Resistance: I 20 Resistance: S 20 Resistance: P 20 Core Shielding 30 Power Shielding 33 Propulsion Shielding 66 Weapon Cycling 20 Phase Shifting 10 Evasion (%) 78 Targeting Accuracy 8 Target Analysis 6 Core Analysis 8 Recoil Reduction 6 Kinecelleration 50 Salvage Targeting 3 Offensive Hacking 20 Defensive Hacking 14 Relay Coupler Types 2 Relay Coupler Value 65 Authchip Count 2 Item Schematics ----------------- Imp. Flight Unit | -9/Materials | Scanalyzed Lrg. Storage Unit | -9/Materials | Extracted Imp. Hover Unit | -9/Materials | Extracted Assault Rifle | -9/Materials | Extracted Terrain Scan Processor | -9/Materials | Extracted Sml. Battery | -9/Materials | Extracted Huge Storage Unit | -9/Materials | Extracted Arm. Wheel | -9/Materials | Scanalyzed Imp. Light Cannon | -9/Materials | Extracted Sml. Storage Unit | -9/Materials | Extracted Mni. Grenade Launcher | -9/Materials | Extracted Imp. Ion Engine | -9/Materials | Extracted Cooling System | -9/Materials | Extracted Hvy. Assault Rifle | -9/Materials | Extracted Sensor Array | -9/Materials | Extracted Beam Cannon | -9/Materials | Extracted Hvy. EM Pulse Gun | -9/Materials | Extracted Beam Rifle | -9/Materials | Extracted Med. Armor Plating | -9/Materials | Extracted Mining Claw | -9/Materials | Extracted Seismic Detector | -9/Materials | Extracted Lrg. Matter Pod | -9/Materials | Extracted Targeting Computer | -9/Materials | Extracted EM Shotgun | -9/Materials | Extracted Field Recycling Unit | -9/Materials | Extracted Hcp. Storage Unit | -9/Materials | Extracted VTOL Module | -9/Materials | Extracted Shotgun | -9/Materials | Extracted Lgt. Fission Core | -7/Factory | Hacked Cld. VTOL Module | -7/Factory | Scanalyzed Railgun | -7/Factory | Scanalyzed Lyr. Medium Armor Plating | -7/Factory | Scanalyzed Rnf. Deuterium Engine | -7/Factory | Scanalyzed Adv. Reaction Control System | -7/Factory | Scanalyzed EM Disruption Field | -7/Factory | Hacked Med. Treads | -7/Factory | Hacked Adv. Force Field | -5/Factory | Scanalyzed Imp. Cooling System | -5/Factory | Scanalyzed Nova Cannon | -5/Factory | Scanalyzed Hacking Suite | -5/Factory | Hacked Biometal Leg | -5/Factory | Hacked Imp. System Restoration Module | -5/Factory | Hacked Adv. Plasma Cannon | -5/Factory | Scanalyzed Robot Schematics ------------------ G-50 Soldier | -7/Factory | Hacked M-28 Smith | -7/Factory | Hacked H-66 Slayer | -5/Factory | Hacked P-70 Sage | -5/Factory | Hacked Fabricated ------------ Impulse Thruster | x2 | -7/Factory | Preloaded G-50 Soldier | x3 | -7/Factory W-25 Informer | x2 | -7/Factory | Preloaded H-66 Slayer | x2 | -5/Factory | Authchip H-66 Slayer | x2 | -5/Factory | Authchip Alien Tech Used ----------------- None Achievements -------------- None Challenges ------------ None Game ------ Seed AlphaSniperLeg Manual? 0 Play Time 05:02:31 Cumulative 469.1 hours Start 2024.07.13 @ 11:30:53 End 2024.07.13 @ 16:50:12 Sessions 1 Manual Loads 0 Difficulty Adventurer Special Mode None Game No. 82 Rogue 0 Adventurer 82 Explorer 0 Win Type - Total 4 Types 2/0/0/2/0/0/0/0/0 Lore% 58 Gallery% 80 Achievement% 67 Wizard Run 0 Options --------- Layout 2 ASCII 0 Keyboard 0 Movement Mouse Keybinds 0 Fullscreen 1 Font 24/Smallcaps Map View 50x49 Zoom Use 0% Tactical HUD 1 Map Filters NONE Filters NONE Steam 1 RUN: 9caa3ff4-6f99-449d-a979-d3234521f932